[Event "3rd FIDE WCCC Rapid U08 2019"]
[Site "Minsk"]
[Date "2019.08.17"]
[Round "7.4"]
[White "Bayramli, Rafael"]
[Black "Velagapudi, Vihan"]
[Result "1-0"]
[ECO "D00"]
[WhiteElo "1514"]
[BlackElo "1337"]
[Annotator "NA"]
[PlyCount "117"]
[EventDate "2019.08.16"]
[EventType "swiss"]
[EventCountry "BLR"]
[SourceTitle "playchess.com"]
[Source "ChessBase"]
[SourceQuality "1"]
[TimeControl "600+5"]

1. d4 {[%emt 0:00:00]} d5 {[%emt 0:00:00]} 2. Bf4 {[%emt 0:00:00]} Nf6 {[%emt 0:00:01]} 3. e3 {[%emt 0:00:00]} c5 {[%emt 0:00:01]} 4. c3 {[%emt 0:00:01]} Nc6 {[%emt 0:00:02]} 5. Nd2 {[%emt 0:00:02]} Qb6 {[%emt 0:00:01]} 6. Qb3 {[%emt 0:00:01]} c4 {[%emt 0:00:01]} 7. Qc2 {[%emt 0:00:02]} Bg4 {[%emt 0:00:02]} 8. b3 {[%emt 0:00:02]} cxb3 {[%emt 0:00:20]} 9. axb3 {[%emt 0:00:02]} e6 {[%emt 0:00:02]} 10. Bd3 {[%emt 0:00:03]} Bh5 {[%emt 0:00:28]} 11. Ngf3 {[%emt 0:00:06]} Be7 {[%emt 0:00:04]} 12. h3 {[%emt 0:00:02]} Bg6 {[%emt 0:00:06]} 13. Bxg6 {[%emt 0:00:04]} hxg6 {[%emt 0:00:01]} 14. O-O {[%emt 0:00:27]} O-O {[%emt 0:00:25]} 15. Rfb1 {[%emt 0:00:04]} a5 {[%emt 0:00:03]} 16. Ne1 {[%emt 0:00:20]} Rfc8 {[%emt 0:00:05]} 17. Qb2 {[%emt 0:00:04]} Nd7 {[%emt 0:00:26]} 18. Nd3 {[%emt 0:00:03]} Qa6 19. c4 {[%emt 0:00:19]} Nb4 {[%emt 0:01:06]} 20. Nxb4 {[%emt 0:00:18]} Bxb4 {[%emt 0:00:02]} 21. e4 {[%emt 0:01:13]} dxc4 {[%emt 0:01:05]} 22. bxc4 {[%emt 0:00:27]} b6 23. d5 {[%emt 0:01:03]} Bxd2 {[%emt 0:01:34]} 24. Qxd2 {[%emt 0:00:44]} Qxc4 {[%emt 0:01:02]} 25. dxe6 {[%emt 0:00:45]} Qxe6 {[%emt 0:00:02]} 26. f3 {[%emt 0:00:47]} Nc5 {[%emt 0:00:02]} 27. Qa2 {[%emt 0:00:45]} Qxa2 {[%emt 0:00:21]} 28. Rxa2 {[%emt 0:00:02]} Ra6 {[%emt 0:00:17]} 29. Be3 {[%emt 0:00:11]} a4 {[%emt 0:00:22]} 30. Rb5 {[%emt 0:00:22]} Kf8 {[%emt 0:00:33]} 31. Bc1 {[%emt 0:00:52]} Ke7 {[%emt 0:00:12]} 32. Ba3 {[%emt 0:00:01]} Kd6 {[%emt 0:00:09]} 33. Rab2 {[%emt 0:00:03]} Kc6 {[%emt 0:00:06]} 34. R5b4 {[%emt 0:00:25]} Rd8 {[%emt 0:00:13]} 35. Kf1 {[%emt 0:00:19]} Rd3 {[%emt 0:00:02]} 36. Ra2 {[%emt 0:00:11]} b5 {[%emt 0:00:20]} 37. Ke2 {[%emt 0:00:15]} Rb3 {[%emt 0:00:15]} 38. Kd2 {[%emt 0:00:24]} Rxb4 {[%emt 0:00:10]} 39. Bxb4 {[%emt 0:00:01]} Nb3+ {[%emt 0:00:21]} 40. Kc2 {[%emt 0:00:28]} Ra8 {[%emt 0:00:07]} 41. Kb2 {[%emt 0:00:20]} Kb6 {[%emt 0:00:12]} 42. Ka3 {[%emt 0:00:09]} Rc8 {[%emt 0:00:13]} 43. Re2 {[%emt 0:00:52]} f6 {[%emt 0:01:16]} 44. e5 {[%emt 0:00:31]} Re8 {[%emt 0:00:03]} 45. exf6 {[%emt 0:00:16]} Rg8 {[%emt 0:00:36]} 46. f7 {[%emt 0:00:01]} Rd8 {[%emt 0:00:32]} 47. Re8 {[%emt 0:00:18]} Rd1 {[%emt 0:00:13]} 48. f8=Q {[%emt 0:00:03]} Ra1+ {[%emt 0:00:02]} 49. Kb2 {[%emt 0:00:00]} Rc1 {[%emt 0:00:09]} 50. Qd6+ {[%emt 0:00:07]} Rc6 {[%emt 0:00:03]} 51. Rb8+ {[%emt 0:00:07]} Ka7 52. Qxc6 {[%emt 0:00:10]} Kxb8 {[%emt 0:00:05]} 53. Bd6+ {[%emt 0:00:03]} Ka7 {[%emt 0:00:02]} 54. Qc7+ {[%emt 0:00:05]} Ka6 {[%emt 0:00:03]} 55. Qc6+ {[%emt 0:00:03]} Ka7 {[%emt 0:00:18]} 56. Bc7 {[%emt 0:00:03]} a3+ {[%emt 0:00:07]} 57. Kxb3 {[%emt 0:00:04]} b4 {[%emt 0:00:07]} 58. Qb6+ {[%emt 0:00:03]} Ka8 {[%emt 0:00:01]} 59. Qa6# {[%emt 0:00:01]} 1-0

[Event "3rd FIDE WCCC Rapid U08 2019"]
[Site "Minsk"]
[Date "2019.08.17"]
[Round "7.5"]
[White "Fedosov, Alexander"]
[Black "Karimli, Yusif"]
[Result "1/2-1/2"]
[ECO "C10"]
[WhiteElo "1160"]
[BlackElo "1658"]
[Annotator "NA"]
[PlyCount "89"]
[EventDate "2019.08.16"]
[EventType "swiss"]
[EventCountry "BLR"]
[SourceTitle "playchess.com"]
[Source "ChessBase"]
[SourceQuality "1"]
[TimeControl "600+5"]

1. e4 {[%emt 0:00:00]} e6 {[%emt 0:00:00]} 2. d4 {[%emt 0:00:00]} d5 {[%emt 0:00:02]} 3. Nd2 {[%emt 0:00:01]} dxe4 {[%emt 0:00:08]} 4. Nxe4 {[%emt 0:00:02]} Bd7 {[%emt 0:00:05]} 5. Nf3 {[%emt 0:00:08]} Bc6 {[%emt 0:00:15]} 6. Bd3 {[%emt 0:00:02]} Nd7 {[%emt 0:00:21]} 7. O-O {[%emt 0:00:06]} Ngf6 {[%emt 0:00:29]} 8. Re1 {[%emt 0:00:15]} Nxe4 {[%emt 0:00:29]} 9. Bxe4 {[%emt 0:00:05]} Bxe4 {[%emt 0:00:19]} 10. Rxe4 {[%emt 0:00:01]} Nf6 {[%emt 0:00:35]} 11. Re1 {[%emt 0:00:31]} Be7 {[%emt 0:00:22]} 12. Bf4 {[%emt 0:00:45]} O-O {[%emt 0:00:38]} 13. c3 {[%emt 0:00:09]} c5 {[%emt 0:00:59]} 14. dxc5 {[%emt 0:00:58]} Bxc5 {[%emt 0:00:53]} 15. Be3 {[%emt 0:00:12]} Bxe3 {[%emt 0:00:52]} 16. Rxe3 {[%emt 0:00:05]} Qc7 {[%emt 0:00:39]} 17. Qe2 {[%emt 0:00:51]} Qf4 {[%emt 0:01:07]} 18. g3 {[%emt 0:00:40]} Qc7 {[%emt 0:01:08]} 19. Rd1 {[%emt 0:00:16]} Rfd8 {[%emt 0:00:42]} 20. Red3 {[%emt 0:00:20]} Rxd3 {[%emt 0:00:19]} 21. Rxd3 {[%emt 0:00:44]} Qa5 {[%emt 0:00:23]} 22. a3 {[%emt 0:00:14]} Rc8 {[%emt 0:00:32]} 23. Qe5 {[%emt 0:00:54]} Qb6 {[%emt 0:00:17]} 24. Qd4 {[%emt 0:00:14]} Qxd4 {[%emt 0:00:10]} 25. Rxd4 {[%emt 0:00:02]} Nd5 {[%emt 0:00:05]} 26. c4 {[%emt 0:00:08]} Nb6 {[%emt 0:00:05]} 27. b3 {[%emt 0:00:01]} a5 {[%emt 0:00:08]} 28. Rd6 {[%emt 0:00:17]} Na8 {[%emt 0:00:07]} 29. a4 {[%emt 0:00:09]} Kf8 {[%emt 0:00:04]} 30. Ne5 {[%emt 0:00:15]} f6 {[%emt 0:00:07]} 31. Nd7+ {[%emt 0:00:13]} Ke7 {[%emt 0:00:03]} 32. Nb6 {[%emt 0:00:36]} Kxd6 {[%emt 0:00:08]} 33. Nxc8+ {[%emt 0:00:01]} Kd7 {[%emt 0:00:03]} 34. Na7 {[%emt 0:00:04]} Kd6 {[%emt 0:00:03]} 35. Nb5+ {[%emt 0:00:41]} Kc5 {[%emt 0:00:01]} 36. Kf1 {[%emt 0:00:04]} e5 {[%emt 0:00:04]} 37. Ke2 {[%emt 0:00:19]} Kb4 {[%emt 0:00:01]} 38. Kd3 {[%emt 0:00:02]} Kxb3 {[%emt 0:00:05]} 39. Nd6 {[%emt 0:00:05]} b6 {[%emt 0:00:13]} 40. Ne8 {[%emt 0:00:03]} Kxa4 {[%emt 0:00:05]} 41. Kc3 {[%emt 0:00:01]} Ka3 {[%emt 0:00:07]} 42. Nxg7 {[%emt 0:00:03]} Nc7 {[%emt 0:00:01]} 43. Nh5 {[%emt 0:00:09]} Ne8 {[%emt 0:00:01]} 44. g4 {[%emt 0:00:08]} a4 {[%emt 0:00:04]} 45. f3 {[%emt 0:00:13]} 1/2-1/2

[Event "3rd FIDE WCCC Rapid U08 2019"]
[Site "Minsk"]
[Date "2019.08.17"]
[Round "7.6"]
[White "Gulenko, Zakhar"]
[Black "Nematolahi, Amirali"]
[Result "1-0"]
[ECO "C02"]
[WhiteElo "1496"]
[BlackElo "1220"]
[Annotator "NA"]
[PlyCount "83"]
[EventDate "2019.08.16"]
[EventType "swiss"]
[EventCountry "BLR"]
[SourceTitle "playchess.com"]
[Source "ChessBase"]
[SourceQuality "1"]
[TimeControl "600+5"]

1. e4 {[%emt 0:00:00]} e6 {[%emt 0:00:00]} 2. d4 {[%emt 0:00:00]} d5 {[%emt 0:00:00]} 3. e5 {[%emt 0:00:00]} c5 {[%emt 0:00:00]} 4. c3 {[%emt 0:00:01]} Nc6 {[%emt 0:00:00]} 5. Nf3 {[%emt 0:00:04]} Qb6 {[%emt 0:00:00]} 6. Be2 {[%emt 0:00:07]} Nh6 {[%emt 0:00:09]} 7. a4 {[%emt 0:00:56]} Nf5 {[%emt 0:00:25]} 8. Bb5 {[%emt 0:00:09]} cxd4 {[%emt 0:00:04]} 9. Nxd4 {[%emt 0:00:06]} Nfxd4 {[%emt 0:00:02]} 10. cxd4 {[%emt 0:00:13]} Bb4+ {[%emt 0:00:02]} 11. Nc3 {[%emt 0:00:08]} O-O {[%emt 0:00:07]} 12. O-O {[%emt 0:00:06]} Nxd4 {[%emt 0:00:06]} 13. Bd3 {[%emt 0:00:22]} Nc6 {[%emt 0:00:16]} 14. Qh5 {[%emt 0:01:18]} g6 {[%emt 0:00:21]} 15. Qe2 {[%emt 0:00:10]} Nd4 {[%emt 0:00:41]} 16. Qg4 {[%emt 0:00:48]} Nf5 {[%emt 0:00:20]} 17. Bxf5 {[%emt 0:00:43]} exf5 {[%emt 0:00:02]} 18. Qh4 {[%emt 0:00:06]} Bxc3 {[%emt 0:00:14]} 19. bxc3 {[%emt 0:00:03]} Re8 {[%emt 0:00:17]} 20. Be3 {[%emt 0:00:38]} Qc7 {[%emt 0:00:28]} 21. Bd4 {[%emt 0:00:13]} Be6 {[%emt 0:00:13]} 22. Rfe1 {[%emt 0:00:31]} Qe7 {[%emt 0:00:13]} 23. Qh6 {[%emt 0:00:21]} Qf8 {[%emt 0:00:04]} 24. Qf4 {[%emt 0:00:07]} Qg7 {[%emt 0:00:13]} 25. Rab1 {[%emt 0:00:14]} b6 {[%emt 0:00:04]} 26. h4 {[%emt 0:00:22]} Rac8 {[%emt 0:00:26]} 27. a5 {[%emt 0:00:36]} bxa5 {[%emt 0:00:15]} 28. Ra1 {[%emt 0:00:02]} a6 {[%emt 0:00:23]} 29. Rxa5 {[%emt 0:00:09]} Rc6 {[%emt 0:00:02]} 30. Rea1 {[%emt 0:00:27]} Bc8 {[%emt 0:00:25]} 31. g3 {[%emt 0:00:32]} Ree6 {[%emt 0:00:24]} 32. Rb1 {[%emt 0:00:12]} Bd7 {[%emt 0:00:28]} 33. Rxd5 {[%emt 0:00:07]} Be8 {[%emt 0:00:13]} 34. Rb8 {[%emt 0:00:07]} h6 35. Rdd8 {[%emt 0:00:20]} Qf8 {[%emt 0:00:47]} 36. Qf3 {[%emt 0:00:06]} a5 {[%emt 0:01:08]} 37. Qxc6 {[%emt 0:00:31]} Rxc6 {[%emt 0:00:34]} 38. Rxe8 {[%emt 0:00:02]} f6 {[%emt 0:00:20]} 39. Rxf8+ {[%emt 0:00:07]} Kg7 {[%emt 0:00:02]} 40. exf6+ {[%emt 0:00:02]} Rxf6 {[%emt 0:00:04]} 41. Bxf6+ {[%emt 0:00:03]} Kh7 {[%emt 0:00:01]} 42. Rf7# 1-0

[Event "3rd FIDE WCCC Rapid U08 2019"]
[Site "Minsk"]
[Date "2019.08.17"]
[Round "8.1"]
[White "Usov, Dmitry E."]
[Black "Yeganegi, Barad"]
[Result "0-1"]
[ECO "B22"]
[WhiteElo "1331"]
[BlackElo "1612"]
[Annotator "NA"]
[PlyCount "92"]
[EventDate "2019.08.16"]
[EventType "swiss"]
[EventCountry "BLR"]
[SourceTitle "playchess.com"]
[Source "ChessBase"]
[SourceQuality "1"]
[TimeControl "600+5"]

1. e4 {[%emt 0:00:00]} c5 {[%emt 0:00:00]} 2. c3 {[%emt 0:00:00]} Nf6 {[%emt 0:00:01]} 3. e5 {[%emt 0:00:00]} Nd5 {[%emt 0:00:02]} 4. d4 {[%emt 0:00:00]} cxd4 {[%emt 0:00:03]} 5. Nf3 {[%emt 0:00:01]} Nc6 {[%emt 0:00:01]} 6. cxd4 {[%emt 0:00:02]} d6 {[%emt 0:00:02]} 7. Bc4 {[%emt 0:00:01]} Nb6 {[%emt 0:00:01]} 8. Bb3 {[%emt 0:00:03]} d5 {[%emt 0:00:05]} 9. O-O {[%emt 0:00:03]} Bg4 {[%emt 0:00:06]} 10. Be3 {[%emt 0:00:10]} e6 {[%emt 0:00:07]} 11. Nc3 {[%emt 0:00:03]} Be7 {[%emt 0:00:05]} 12. h3 {[%emt 0:00:06]} Bh5 {[%emt 0:00:02]} 13. Qe2 {[%emt 0:00:11]} O-O {[%emt 0:00:04]} 14. a3 {[%emt 0:00:14]} Rc8 {[%emt 0:00:41]} 15. Rac1 {[%emt 0:00:14]} a6 {[%emt 0:00:15]} 16. Na4 {[%emt 0:00:39]} Nc4 {[%emt 0:00:24]} 17. Bxc4 {[%emt 0:00:05]} dxc4 {[%emt 0:00:01]} 18. Rc3 {[%emt 0:00:05]} b5 {[%emt 0:00:15]} 19. Nc5 {[%emt 0:00:01]} Bxc5 {[%emt 0:00:02]} 20. dxc5 {[%emt 0:00:02]} Nxe5 21. g4 Nxf3+ {[%emt 0:00:37]} 22. Qxf3 {[%emt 0:00:56]} Bg6 {[%emt 0:00:02]} 23. Rd1 {[%emt 0:00:02]} Qc7 {[%emt 0:00:06]} 24. Bf4 {[%emt 0:00:14]} Qa7 {[%emt 0:00:19]} 25. Be3 {[%emt 0:00:37]} Qc7 {[%emt 0:01:07]} 26. b4 {[%emt 0:00:08]} a5 {[%emt 0:00:15]} 27. Bf4 e5 28. Bg3 {[%emt 0:00:13]} f6 {[%emt 0:00:36]} 29. Qd5+ {[%emt 0:00:12]} Bf7 {[%emt 0:00:10]} 30. Qd6 {[%emt 0:00:04]} Rfd8 {[%emt 0:00:07]} 31. Qa6 {[%emt 0:01:09]} Rxd1+ {[%emt 0:00:02]} 32. Kg2 {[%emt 0:00:05]} axb4 {[%emt 0:00:07]} 33. axb4 {[%emt 0:00:02]} Qc6+ {[%emt 0:00:02]} 34. Qxc6 {[%emt 0:00:05]} Rxc6 {[%emt 0:00:01]} 35. Ra3 {[%emt 0:00:05]} Bd5+ {[%emt 0:00:03]} 36. f3 {[%emt 0:00:03]} Rc7 {[%emt 0:00:04]} 37. Ra5 {[%emt 0:00:04]} Bc6 {[%emt 0:00:02]} 38. Ra6 {[%emt 0:00:01]} Rb1 {[%emt 0:00:02]} 39. Rb6 {[%emt 0:00:04]} Rxb4 {[%emt 0:00:01]} 40. Rb8+ {[%emt 0:00:02]} Kf7 {[%emt 0:00:01]} 41. Kf2 {[%emt 0:00:06]} c3 {[%emt 0:00:02]} 42. Ke3 {[%emt 0:00:06]} Rd4 43. h4 {[%emt 0:00:06]} c2 {[%emt 0:00:02]} 44. h5 {[%emt 0:00:06]} c1=Q+ {[%emt 0:00:02]} 45. Kf2 {[%emt 0:00:05]} Rd2+ {[%emt 0:00:03]} 46. Ke3 {[%emt 0:00:02]} Qc3# {[%emt 0:00:02] Kd4} 0-1

[Event "3rd FIDE WCCC Rapid U08 2019"]
[Site "Minsk"]
[Date "2019.08.17"]
[Round "8.2"]
[White "Nikishin, Igor"]
[Black "Bouska, Jiri"]
[Result "0-1"]
[ECO "B83"]
[WhiteElo "1139"]
[BlackElo "1505"]
[Annotator "NA"]
[PlyCount "178"]
[EventDate "2019.08.16"]
[EventType "swiss"]
[EventCountry "BLR"]
[SourceTitle "playchess.com"]
[Source "ChessBase"]
[SourceQuality "1"]
[TimeControl "600+5"]

1. e4 {[%emt 0:00:00]} c5 {[%emt 0:00:00]} 2. Nf3 {[%emt 0:00:00]} Nc6 {[%emt 0:00:00]} 3. d4 {[%emt 0:00:01]} cxd4 {[%emt 0:00:00]} 4. Nxd4 {[%emt 0:00:03]} d6 {[%emt 0:00:00]} 5. Nc3 {[%emt 0:00:02]} e6 {[%emt 0:00:00]} 6. Be2 {[%emt 0:00:14]} Nf6 {[%emt 0:00:01]} 7. O-O {[%emt 0:00:05]} Be7 {[%emt 0:00:01]} 8. Be3 {[%emt 0:00:02]} O-O {[%emt 0:00:02]} 9. Qd2 {[%emt 0:00:00]} e5 {[%emt 0:00:07]} 10. Nb3 {[%emt 0:01:43]} Be6 {[%emt 0:00:05]} 11. f4 {[%emt 0:00:15]} exf4 {[%emt 0:00:33]} 12. Bxf4 {[%emt 0:00:43]} a6 {[%emt 0:00:12]} 13. Rad1 {[%emt 0:00:27]} Ne5 {[%emt 0:00:22]} 14. Nd4 {[%emt 0:00:50]} Nc4 {[%emt 0:01:08]} 15. Bxc4 {[%emt 0:00:58]} Bxc4 {[%emt 0:00:01]} 16. Rf3 Qc7 {[%emt 0:00:57]} 17. Nf5 {[%emt 0:00:36]} Rad8 {[%emt 0:01:36]} 18. Nxe7+ {[%emt 0:01:20]} Qxe7 {[%emt 0:00:06]} 19. b3 {[%emt 0:00:01]} Be6 {[%emt 0:00:19]} 20. Rd3 {[%emt 0:00:39]} Bg4 {[%emt 0:00:30]} 21. Re1 {[%emt 0:00:13]} Rfe8 {[%emt 0:00:31]} 22. e5 {[%emt 0:00:11]} dxe5 {[%emt 0:00:15]} 23. Rxe5 {[%emt 0:00:07]} Be6 {[%emt 0:01:09]} 24. Bg5 {[%emt 0:00:29]} Rxd3 {[%emt 0:00:34]} 25. Qxd3 {[%emt 0:00:05]} Rd8 {[%emt 0:00:04]} 26. Qe2 {[%emt 0:00:15]} h6 {[%emt 0:00:19]} 27. Bh4 {[%emt 0:00:15]} g5 {[%emt 0:00:34]} 28. Bf2 {[%emt 0:00:40]} Qb4 {[%emt 0:00:01]} 29. Ne4 {[%emt 0:00:22]} Nxe4 {[%emt 0:00:09]} 30. Rxe4 {[%emt 0:00:11]} Qc3 {[%emt 0:00:23]} 31. Rxe6 {[%emt 0:00:41]} fxe6 {[%emt 0:00:04]} 32. Qxe6+ {[%emt 0:00:02]} Kf8 {[%emt 0:00:04]} 33. Qf5+ {[%emt 0:00:02]} Kg7 {[%emt 0:00:06]} 34. h3 {[%emt 0:00:20]} Qf6 {[%emt 0:00:08]} 35. Qc5 {[%emt 0:00:24]} Rd1+ {[%emt 0:00:06]} 36. Kh2 {[%emt 0:00:03]} Qd6+ {[%emt 0:00:02]} 37. Qxd6 {[%emt 0:00:07]} Rxd6 {[%emt 0:00:02]} 38. c3 {[%emt 0:00:11]} Kg6 {[%emt 0:00:04]} 39. Bd4 {[%emt 0:00:03]} Re6 {[%emt 0:00:05]} 40. a4 {[%emt 0:00:05]} Kf5 {[%emt 0:00:05]} 41. Kg3 {[%emt 0:00:02]} h5 {[%emt 0:00:00]} 42. Kf3 {[%emt 0:00:03]} Re1 {[%emt 0:00:20]} 43. g4+ {[%emt 0:00:06]} hxg4+ {[%emt 0:00:01]} 44. hxg4+ {[%emt 0:00:00]} Ke6 {[%emt 0:00:01]} 45. b4 {[%emt 0:00:06]} Ra1 {[%emt 0:00:08]} 46. a5 {[%emt 0:00:01]} Kd5 {[%emt 0:00:07]} 47. Ke3 {[%emt 0:00:06]} Re1+ {[%emt 0:00:02]} 48. Kf2 {[%emt 0:00:02]} Re4 {[%emt 0:00:07]} 49. Kf3 {[%emt 0:00:01]} Rxd4 {[%emt 0:00:04]} 50. cxd4 {[%emt 0:00:01]} Kxd4 {[%emt 0:00:02]} 51. Kf2 {[%emt 0:00:03]} Ke4 {[%emt 0:00:01]} 52. Kg3 {[%emt 0:00:01]} Ke3 {[%emt 0:00:01]} 53. Kh3 {[%emt 0:00:01]} Kf3 {[%emt 0:00:01]} 54. Kh2 {[%emt 0:00:01]} Kxg4 {[%emt 0:00:01]} 55. Kg2 {[%emt 0:00:01]} Kf4 {[%emt 0:00:01]} 56. Kf2 {[%emt 0:00:01]} g4 {[%emt 0:00:01]} 57. Kg2 {[%emt 0:00:00]} g3 {[%emt 0:00:01]} 58. Kg1 {[%emt 0:00:01]} Kf3 {[%emt 0:00:05]} 59. Kf1 {[%emt 0:00:01]} g2+ {[%emt 0:00:01]} 60. Kg1 {[%emt 0:00:03]} Ke4 {[%emt 0:00:17]} 61. Kxg2 {[%emt 0:00:01]} Kd4 {[%emt 0:00:00]} 62. Kf3 {[%emt 0:00:02]} Kc4 {[%emt 0:00:01]} 63. Ke4 {[%emt 0:00:00]} Kxb4 {[%emt 0:00:01]} 64. Kd4 {[%emt 0:00:01]} Kxa5 65. Kc5 {[%emt 0:00:01]} b5 {[%emt 0:00:03]} 66. Kd4 {[%emt 0:00:02]} Kb4 {[%emt 0:00:02]} 67. Kd3 {[%emt 0:00:01]} a5 {[%emt 0:00:01]} 68. Kc2 {[%emt 0:00:01]} a4 {[%emt 0:00:00]} 69. Kb2 {[%emt 0:00:01]} a3+ {[%emt 0:00:02]} 70. Ka2 {[%emt 0:00:00]} Ka4 {[%emt 0:00:00]} 71. Kb1 {[%emt 0:00:01]} b4 {[%emt 0:00:01]} 72. Kc2 {[%emt 0:00:01]} b3+ {[%emt 0:00:01]} 73. Kc1 {[%emt 0:00:01]} a2 {[%emt 0:00:04]} 74. Kb2 {[%emt 0:00:01]} Kb4 {[%emt 0:00:02]} 75. Ka1 {[%emt 0:00:01]} Ka4 {[%emt 0:00:09]} 76. Kb2 {[%emt 0:00:01]} a1=Q+ {[%emt 0:00:15]} 77. Kxa1 {[%emt 0:00:03]} Ka3 {[%emt 0:00:01]} 78. Kb1 {[%emt 0:00:01]} b2 {[%emt 0:00:00]} 79. Kc2 {[%emt 0:00:00]} Ka2 {[%emt 0:00:01]} 80. Kc3 {[%emt 0:00:01]} b1=Q {[%emt 0:00:04]} 81. Kc4 {[%emt 0:00:01]} Ka3 {[%emt 0:00:01]} 82. Kc5 {[%emt 0:00:00]} Qd3 {[%emt 0:00:02]} 83. Kc6 {[%emt 0:00:02]} Kb4 {[%emt 0:00:01]} 84. Kc7 {[%emt 0:00:01]} Qd5 {[%emt 0:00:01]} 85. Kb6 Qd6+ 86. Ka7 {[%emt 0:00:03]} Kb5 {[%emt 0:00:02]} 87. Kb7 {[%emt 0:00:02]} Qd7+ {[%emt 0:00:01]} 88. Ka8 {[%emt 0:00:02]} Ka6 {[%emt 0:00:01]} 89. Kb8 {[%emt 0:00:01]} Qd8# {[%emt 0:00:00]} 0-1

[Event "3rd FIDE WCCC Rapid U08 2019"]
[Site "Minsk"]
[Date "2019.08.17"]
[Round "8.3"]
[White "Bayramli, Rafael"]
[Black "Preobrazhenskaya, Diana"]
[Result "1-0"]
[ECO "A30"]
[WhiteElo "1514"]
[BlackElo "1361"]
[Annotator "NA"]
[PlyCount "123"]
[EventDate "2019.08.16"]
[EventType "swiss"]
[EventCountry "BLR"]
[SourceTitle "playchess.com"]
[Source "ChessBase"]
[SourceQuality "1"]
[TimeControl "600+5"]

1. c4 {[%emt 0:00:00]} c5 {[%emt 0:00:00]} 2. g3 {[%emt 0:00:00]} Nf6 {[%emt 0:00:01]} 3. Bg2 {[%emt 0:00:01]} d5 {[%emt 0:00:10]} 4. cxd5 {[%emt 0:00:11]} Nxd5 {[%emt 0:00:06]} 5. Nc3 {[%emt 0:00:13]} Nxc3 {[%emt 0:00:52]} 6. bxc3 {[%emt 0:00:09]} g6 {[%emt 0:00:49]} 7. d4 {[%emt 0:00:45]} Bg7 {[%emt 0:00:34]} 8. Bb2 {[%emt 0:00:12]} cxd4 {[%emt 0:00:40]} 9. cxd4 {[%emt 0:00:04]} O-O {[%emt 0:00:19]} 10. e3 {[%emt 0:00:16]} Nc6 {[%emt 0:00:26]} 11. Ne2 {[%emt 0:00:08]} Be6 {[%emt 0:01:23]} 12. O-O {[%emt 0:01:30]} Qc8 {[%emt 0:00:33]} 13. Qd2 {[%emt 0:02:08]} Bh3 {[%emt 0:00:18]} 14. Bxh3 {[%emt 0:00:42]} Qxh3 {[%emt 0:00:02]} 15. Nf4 {[%emt 0:00:02]} Qf5 {[%emt 0:00:19]} 16. Qd3 {[%emt 0:00:33]} Qd7 {[%emt 0:00:17]} 17. Rac1 {[%emt 0:00:44]} Rad8 {[%emt 0:00:12]} 18. Qb3 {[%emt 0:00:19]} e5 {[%emt 0:00:18]} 19. dxe5 {[%emt 0:00:05]} Nxe5 {[%emt 0:00:08]} 20. Rfd1 {[%emt 0:00:18]} Qg4 {[%emt 0:00:13]} 21. h3 {[%emt 0:01:00]} Qf5 {[%emt 0:00:38]} 22. Rxd8 {[%emt 0:00:49]} Rxd8 {[%emt 0:00:02]} 23. Qxb7 {[%emt 0:00:10]} g5 {[%emt 0:00:25]} 24. Nh5 {[%emt 0:00:53]} Bh8 {[%emt 0:01:28]} 25. Qe7 {[%emt 0:00:21]} Rf8 {[%emt 0:00:53]} 26. a3 {[%emt 0:00:30]} g4 {[%emt 0:00:26]} 27. Nf4 {[%emt 0:00:04]} gxh3 {[%emt 0:00:15]} 28. Bxe5 {[%emt 0:00:01]} Bxe5 {[%emt 0:00:03]} 29. Rc5 {[%emt 0:00:08]} Qb1+ {[%emt 0:00:06]} 30. Kh2 {[%emt 0:00:02]} Bg7 {[%emt 0:00:09]} 31. Nxh3 {[%emt 0:00:11]} Qg6 {[%emt 0:00:11]} 32. Rg5 {[%emt 0:00:02]} Qh6 {[%emt 0:00:03]} 33. Rg4 {[%emt 0:00:03]} Kh8 {[%emt 0:00:10]} 34. Qxa7 {[%emt 0:00:07]} Qh5 {[%emt 0:00:07]} 35. Rh4 {[%emt 0:00:03]} Qg6 {[%emt 0:00:07]} 36. Nf4 {[%emt 0:00:04]} Qc2 {[%emt 0:00:03]} 37. Kg2 {[%emt 0:00:03]} Bf6 {[%emt 0:00:04]} 38. Rh6 {[%emt 0:00:03]} Bg5 {[%emt 0:00:03]} 39. Rh1 {[%emt 0:00:05]} Qe4+ {[%emt 0:00:03]} 40. Kh2 {[%emt 0:00:03]} Qf3 {[%emt 0:00:07]} 41. Rf1 {[%emt 0:00:03]} Bxf4 {[%emt 0:00:08]} 42. Qd4+ {[%emt 0:00:08]} f6 {[%emt 0:00:04]} 43. Qxf4 {[%emt 0:00:02]} Qh5+ {[%emt 0:00:03]} 44. Qh4 {[%emt 0:00:04]} Qe2 {[%emt 0:00:03]} 45. Kg2 {[%emt 0:00:02]} Qd3 {[%emt 0:00:03]} 46. Rh1 {[%emt 0:00:07]} Rf7 {[%emt 0:00:03]} 47. a4 {[%emt 0:00:06]} Qa6 {[%emt 0:00:05]} 48. Qe4 {[%emt 0:00:08]} Kg8 {[%emt 0:00:09]} 49. Qe8+ {[%emt 0:00:13]} Rf8 {[%emt 0:00:03]} 50. Qe4 {[%emt 0:00:03]} Rf7 {[%emt 0:00:04]} 51. Rh4 {[%emt 0:00:03]} f5 {[%emt 0:00:06]} 52. Qe8+ {[%emt 0:00:07]} Rf8 {[%emt 0:00:03]} 53. Qb5 {[%emt 0:00:04]} Qa8+ {[%emt 0:00:04]} 54. Kh2 {[%emt 0:00:02]} Qd8 {[%emt 0:00:06]} 55. Qc4+ {[%emt 0:00:04]} Rf7 {[%emt 0:00:08]} 56. a5 {[%emt 0:00:07]} Qf6 {[%emt 0:00:07]} 57. a6 {[%emt 0:00:10]} Qb2 {[%emt 0:00:06]} 58. Rf4 {[%emt 0:00:08]} Qb8 {[%emt 0:00:06]} 59. Rxf5 {[%emt 0:00:04]} Qf8 {[%emt 0:00:08]} 60. Qxf7+ {[%emt 0:00:02]} Qxf7 {[%emt 0:00:03]} 61. Rxf7 {[%emt 0:00:00]} Kxf7 {[%emt 0:00:02]} 62. a7 {[%emt 0:00:01]} 1-0